bitfinex/quotes_BTCUSD_20240906
["timestamp","ask_amount","ask_price","bid_price","bid_amount"]
[1725610048340,1.80559389,55890.0,55889.0,0.016632]
[1725610048584,1.8855018,55890.0,55889.0,0.016632]
[1725610048869,1.88551862,55890.0,55889.0,0.016632]
[1725610049076,1.88351862,55890.0,55889.0,0.016632]
[1725610049257,1.88151862,55890.0,55889.0,0.001632]
[1725610049498,1.88351862,55890.0,55889.0,0.014632]
[1725610050298,1.52567362,55890.0,55889.0,0.014632]
[1725610050501,0.70998362,55890.0,55889.0,0.014632]
[1725610050941,1.06782862,55890.0,55889.0,0.014632]
[1725610052063,1.05101661,55890.0,55889.0,0.014632]
[1725610052294,1.40886161,55890.0,55889.0,0.014632]
[1725610052514,1.42566218,55890.0,55889.0,0.014632]
[1725610053202,2.11886941,55890.0,55889.0,0.014632]
[1725610053413,2.04820718,55890.0,55889.0,0.014632]
[1725610053618,2.11294644,55890.0,55889.0,0.014632]
[1725610053847,2.48079144,55890.0,55889.0,0.014632]
[1725610054118,2.82463197,55890.0,55889.0,0.014632]
[1725610054326,2.50766071,55890.0,55889.0,0.014632]
[1725610054536,2.9318594,55890.0,55889.0,0.014632]
[1725610054957,2.82466497,55890.0,55889.0,0.014632]
[1725610055161,2.82468987,55890.0,55889.0,0.014632]
[1725610055384,2.82268987,55890.0,55889.0,0.001632]
[1725610055589,2.93188816,55890.0,55889.0,0.012632]
[1725610055793,2.95188816,55890.0,55889.0,0.012632]
[1725610056052,0.548806,55886.0,55858.0,0.128]
[1725610056306,1.184032,55870.0,55869.0,0.52650515]
[1725610056501,1.95489726,55870.0,55869.0,0.52650515]
[1725610056724,1.95489726,55870.0,55854.0,0.128]
[1725610056725,0.894965,55868.0,55854.0,0.128]
[1725610056951,1.30787026,55868.0,55855.0,0.179034]
[1725610057382,1.30787026,55868.0,55854.0,0.307038]
[1725610058092,2.31904226,55868.0,55851.0,0.00164]
[1725610058302,2.38092776,55868.0,55851.0,0.00164]
[1725610058539,2.41903303,55868.0,55851.0,0.00164]
[1725610058767,2.40781537,55868.0,55851.0,0.00164]
[1725610058991,2.41081244,55868.0,55851.0,0.00164]
[1725610059221,2.41181244,55868.0,55851.0,0.00164]
[1725610059532,2.641862,55868.0,55851.0,0.00164]
[1725610059955,2.643862,55868.0,55851.0,0.00164]
[1725610060180,2.645862,55868.0,55851.0,0.00164]
[1725610060405,2.643862,55868.0,55851.0,0.00164]
[1725610060672,2.645862,55868.0,55851.0,0.00164]
[1725610062672,2.643862,55868.0,55851.0,0.00164]
[1725610063511,2.285876,55868.0,55851.0,0.00164]
[1725610063759,2.285876,55868.0,55855.0,0.1235]
[1725610064373,2.285876,55868.0,55852.0,0.1266]
[1725610064580,2.285876,55868.0,55852.0,0.65310515]
[1725610064797,2.285876,55868.0,55852.0,0.1266]
[1725610065237,1.33585444,55868.0,55857.0,0.358057]
[1725610065466,1.33585444,55868.0,55862.0,0.1279]
[1725610065467,1.20975444,55868.0,55862.0,0.1279]
[1725610065756,1.20980855,55868.0,55862.0,0.1279]
[1725610065966,1.20980855,55868.0,55855.0,0.179034]
[1725610066191,1.56779455,55868.0,55859.0,0.1255]
[1725610066857,1.56779455,55868.0,55853.0,0.35808]
[1725610066858,1.56779455,55868.0,55855.0,0.179034]
[1725610067113,1.56779455,55868.0,55856.0,0.1225]
[1725610067997,1.524051,55868.0,55856.0,0.1225]
[1725610068226,1.92577985,55868.0,55856.0,0.1225]
[1725610069753,2.04807985,55868.0,55851.0,0.00164]
[1725610070625,2.04707985,55868.0,55851.0,0.00164]
[1725610071090,2.40806585,55868.0,55851.0,0.00164]
[1725610071329,2.004337,55868.0,55856.0,0.1336]
[1725610071572,1.56580006,55868.0,55856.0,0.1336]
[1725610071784,1.56580006,55868.0,55857.0,0.179026]
[1725610071995,1.20781406,55868.0,55867.0,0.00264]
[1725610072238,1.56580006,55868.0,55867.0,0.00264]
[1725610072476,1.39670006,55868.0,55867.0,0.00164]
[1725610073117,1.39770006,55868.0,55867.0,0.00164]
[1725610073373,1.39769369,55868.0,55867.0,0.00164]
[1725610073793,1.39869369,55868.0,55867.0,0.00264]
[1725610074723,1.354951,55868.0,55867.0,0.00264]
[1725610074946,1.39869387,55868.0,55867.0,0.00264]
[1725610076304,1.354951,55868.0,55867.0,0.00264]
[1725610076518,1.39869387,55868.0,55867.0,0.00264]
[1725610077362,1.55639387,55868.0,55867.0,0.00264]
[1725610078222,1.55639403,55868.0,55867.0,0.00264]
[1725610079500,1.512651,55868.0,55867.0,0.00264]
[1725610079721,1.55639451,55868.0,55867.0,0.00264]
[1725610079940,2.04328051,55868.0,55867.0,0.00264]
[1725610080785,1.68329451,55868.0,55867.0,0.00164]
[1725610081263,1.68429451,55868.0,55867.0,0.00164]
[1725610081513,2.04228051,55868.0,55867.0,0.00164]
[1725610081724,1.6852958,55868.0,55867.0,0.00264]
[1725610083981,2.0432818,55868.0,55867.0,0.00264]
[1725610084194,1.6852958,55868.0,55867.0,0.00264]
[1725610084585,2.0432818,55868.0,55867.0,0.00264]
[1725610084814,1.999537,55868.0,55867.0,0.00264]
[1725610085063,2.04328553,55868.0,55867.0,0.00264]
[1725610086006,2.04228553,55868.0,55867.0,0.00264]
[1725610086615,2.04128553,55868.0,55867.0,0.00164]
[1725610087060,2.04128553,55868.0,55867.0,0.00264]
[1725610087486,2.04228553,55868.0,55867.0,0.00264]
[1725610087704,2.04228553,55868.0,55867.0,0.00164]
[1725610087918,1.68329953,55868.0,55867.0,0.00264]
[1725610088132,1.68429953,55868.0,55867.0,0.00264]
[1725610088350,2.04228553,55868.0,55867.0,0.00264]
[1725610088571,2.04128553,55868.0,55867.0,0.00164]
[1725610088798,2.04228553,55868.0,55867.0,0.00164]
[1725610089008,0.25178182,55868.0,55867.0,0.00164]
[1725610089239,0.58172753,55868.0,55867.0,0.00164]
[1725610089473,0.93971353,55868.0,55867.0,0.00164]
[1725610089980,1.69607023,55868.0,55867.0,0.00164]
[1725610090222,1.85251052,55868.0,55867.0,0.00164]
[1725610090447,1.82449787,55868.0,55867.0,0.00264]
[1725610090692,1.29769953,55868.0,55867.0,0.00264]
[1725610090935,1.32573986,55868.0,55867.0,0.00164]
[1725610091161,1.252951,55868.0,55867.0,0.00164]
[1725610091380,0.96774807,55868.0,55867.0,0.00264]
[1725610091588,0.96874807,55868.0,55867.0,0.00864]
[1725610091803,0.61076207,55868.0,55867.0,0.00864]
[1725610092014,0.58272181,55868.0,55867.0,0.00864]
[1725610092239,0.22473581,55868.0,55867.0,0.00864]
[1725610092975,0.04574281,55868.0,55867.0,0.545629]
[1725610093200,0.04574281,55868.0,55867.0,0.00864]
[1725610093896,0.63547815,55868.0,55867.0,0.00864]
[1725610094127,0.94070781,55868.0,55867.0,0.00864]
[1725610094345,1.060165,55868.0,55867.0,0.00864]
[1725610094562,1.10390653,55868.0,55867.0,0.00864]
[1725610094807,1.48994594,55868.0,55867.0,0.00864]
[1725610095047,1.1050422,55868.0,55867.0,0.00864]
[1725610095275,1.13196027,55868.0,55867.0,0.00864]
[1725610096693,1.15712449,55868.0,55867.0,0.00864]
[1725610097852,1.11338263,55868.0,55867.0,0.00864]
[1725610097854,1.14030088,55868.0,55867.0,0.00864]
[1725610098091,0.99392479,55868.0,55867.0,0.00864]
[1725610099029,0.96587138,55868.0,55867.0,0.00864]
[1725610100688,1.32385738,55868.0,55867.0,0.00864]
[1725610100904,0.96587138,55868.0,55867.0,0.00864]
[1725610102535,0.58272116,55868.0,55867.0,0.00864]
[1725610102753,0.07379264,55868.0,55867.0,0.12294]
[1725610102988,0.07379264,55868.0,55867.0,0.301936]
[1725610103222,0.07379264,55868.0,55867.0,0.801529]
[1725610103435,0.04574216,55868.0,55867.0,1.159522]
[1725610104128,0.04574216,55868.0,55867.0,0.801529]
[1725610104553,0.04574216,55868.0,55867.0,0.659929]
[1725610105753,0.04574216,55868.0,55867.0,1.46709532]
[1725610106014,0.002,55868.0,55867.0,1.46709532]
[1725610106148,0.04571427,55868.0,55867.0,1.46709532]
[1725610106357,0.04571427,55868.0,55867.0,1.46909532]
[1725610106766,0.0625287,55868.0,55867.0,0.75110932]
[1725610106970,0.0625287,55868.0,55867.0,0.659929]
[1725610107600,0.0625287,55868.0,55867.0,0.545629]
[1725610108236,0.0625287,55868.0,55867.0,0.187636]
[1725610108593,0.01681723,55868.0,55867.0,0.187636]
[1725610110310,0.01681723,55868.0,55867.0,0.00864]
[1725610110544,0.55679626,55868.0,55867.0,0.00864]
[1725610110754,0.55379623,55868.0,55867.0,0.00864]
[1725610112497,0.01681723,55868.0,55867.0,0.75975734]
[1725610112726,0.000816,55882.0,55875.0,0.30317]
[1725610112969,0.000816,55882.0,55875.0,2.39237164]
[1725610113214,0.000816,55882.0,55875.0,2.41237164]
[1725610113464,0.000816,55882.0,55881.0,1.70245834]
[1725610113677,0.0001237,55890.0,55889.0,1.264482]
[1725610113887,0.2712807,55906.0,55905.0,0.178874]
[1725610114129,0.28809133,55906.0,55905.0,0.178874]
[1725610114339,0.472303,55913.0,55903.0,0.357761]
[1725610114340,0.179683,55908.0,55903.0,0.357761]
[1725610114559,0.000816,55908.0,55903.0,0.357761]
[1725610114815,0.000816,55908.0,55906.0,0.17887]
[1725610115043,0.000816,55908.0,55907.0,0.357736]
[1725610115294,0.000816,55908.0,55907.0,0.178868]
[1725610115750,0.000816,55908.0,55907.0,0.536604]
[1725610115994,0.000816,55908.0,55907.0,1.14116768]
[1725610116239,0.001816,55908.0,55907.0,1.14016768]
[1725610116453,0.002816,55908.0,55907.0,1.14016768]
[1725610116946,0.001816,55908.0,55907.0,1.14016768]
[1725610117160,0.001816,55908.0,55907.0,1.49790368]
[1725610117384,0.002816,55908.0,55907.0,1.15016768]
[1725610117808,0.001816,55908.0,55907.0,1.14016768]
[1725610118268,0.001816,55908.0,55907.0,1.15016768]
[1725610118269,0.002816,55908.0,55907.0,1.15016768]
[1725610118712,0.001816,55908.0,55907.0,1.15016768]
[1725610118922,0.002816,55908.0,55907.0,1.16416768]
[1725610119513,0.001816,55908.0,55907.0,1.14016768]
[1725610119514,0.000816,55908.0,55907.0,1.14016768]
[1725610119689,0.002816,55908.0,55907.0,1.16416768]
[1725610120095,0.001816,55908.0,55907.0,1.15416768]
[1725610120541,0.001816,55908.0,55907.0,1.51190368]
[1725610120762,0.002816,55908.0,55907.0,1.52190368]
[1725610121193,0.001816,55908.0,55907.0,1.51190368]
[1725610121397,0.001816,55908.0,55907.0,1.51390368]
[1725610121608,0.001816,55908.0,55907.0,1.63180368]
[1725610122449,0.000816,55908.0,55907.0,1.61780368]
[1725610122863,0.001816,55908.0,55907.0,1.63180368]
[1725610123082,0.000816,55908.0,55907.0,1.61780368]
[1725610123341,0.001816,55908.0,55907.0,1.25806768]
[1725610123566,0.002816,55908.0,55907.0,1.27206768]
[1725610123771,0.001816,55908.0,55907.0,1.62180368]
[1725610124009,0.002816,55908.0,55907.0,1.63180368]
[1725610124236,0.001816,55908.0,55907.0,1.61780368]
[1725610124469,0.001816,55908.0,55907.0,2.17105064]
[1725610124470,0.000816,55908.0,55907.0,2.17105064]
[1725610124697,0.000816,55908.0,55907.0,2.27105064]
[1725610124929,0.001816,55908.0,55907.0,2.28105064]
[1725610125796,0.002816,55908.0,55907.0,2.29505064]
[1725610125996,0.001816,55908.0,55907.0,2.28072737]
[1725610126205,0.000816,55908.0,55907.0,2.27072737]
[1725610126427,0.001816,55908.0,55907.0,2.28072737]
[1725610126651,0.002816,55908.0,55907.0,2.29472737]
[1725610127164,0.001816,55908.0,55907.0,2.28472737]
[1725610127348,0.001816,55908.0,55907.0,2.28072737]
[1725610127692,0.002816,55908.0,55907.0,2.29472737]
[1725610130400,0.178811,55925.0,55920.0,0.357649]
[1725610130616,0.178811,55925.0,55921.0,0.178821]
[1725610130831,0.1198,55928.0,55922.0,0.357638]
[1725610131080,0.178808,55926.0,55923.0,0.178816]
[1725610131291,0.357609,55927.0,55924.0,0.178811]
[1725610131292,0.178805,55927.0,55924.0,0.178811]
[1725610131505,0.1198,55928.0,55925.0,0.17881]
[1725610131506,0.298601,55928.0,55925.0,0.17881]
[1725610131727,0.1198,55928.0,55923.0,0.357632]
[1725610131941,0.298604,55928.0,55925.0,0.178807]
[1725610132159,0.298601,55928.0,55925.0,0.178807]
[1725610132387,0.1198,55928.0,55926.0,0.178807]
[1725610133296,0.299602,55928.0,55925.0,0.190809]
[1725610133508,0.300602,55928.0,55925.0,0.200809]
[1725610133722,0.299602,55928.0,55925.0,0.188809]
[1725610133938,0.299602,55928.0,55926.0,0.012]
[1725610134153,0.298602,55928.0,55925.0,0.178809]
[1725610134367,0.178804,55927.0,55926.0,0.01]
[1725610135308,1.50663103,55927.0,55926.0,0.01]
[1725610135772,0.536422,55926.0,55925.0,0.012]
[1725610135988,0.536422,55926.0,55919.0,0.178828]
[1725610135989,0.35763,55924.0,55919.0,0.178828]
[1725610136218,0.178819,55923.0,55920.0,0.178825]
[1725610137153,0.178817,55923.0,55920.0,0.178824]
[1725610137418,0.002,55923.0,55921.0,0.178822]
[1725610137648,0.180818,55923.0,55920.0,0.203826]
[1725610137884,0.002,55923.0,55922.0,0.17882]
[1725610138120,0.002,55923.0,55922.0,0.26638013]
[1725610138550,0.002,55923.0,55922.0,0.62402013]
[1725610138788,0.001,55923.0,55922.0,0.62402013]
[1725610139446,0.001,55923.0,55922.0,0.98166013]
[1725610139662,0.113015,55927.0,55923.0,0.357631]
[1725610139894,0.000815,55927.0,55926.0,0.178807]
[1725610140101,0.000815,55927.0,55926.0,0.62794739]
[1725610140315,0.01761906,55927.0,55926.0,0.62794739]
[1725610140523,0.01761906,55927.0,55926.0,1.34317739]
[1725610140737,0.000815,55927.0,55926.0,1.70279239]
[1725610140961,0.000815,55927.0,55926.0,1.88830335]
[1725610141180,0.001815,55927.0,55926.0,2.17490335]
[1725610142238,0.001815,55927.0,55926.0,1.10856239]
[1725610142581,0.001815,55927.0,55926.0,1.47817739]
[1725610142667,0.001815,55927.0,55926.0,1.36617739]
[1725610143091,0.000815,55927.0,55926.0,0.98556239]
[1725610143307,0.01761655,55927.0,55926.0,0.28433239]
[1725610143526,0.01761655,55927.0,55926.0,0.29833239]
[1725610143763,0.01761655,55927.0,55926.0,0.62794739]
[1725610144214,0.01761655,55927.0,55926.0,0.64194739]
[1725610144431,0.01761655,55927.0,55926.0,0.10552539]
[1725610144432,0.04450012,55927.0,55926.0,0.10552539]
[1725610144662,0.18750012,55927.0,55926.0,0.10552539]
[1725610144889,0.18750231,55927.0,55926.0,0.10552539]
[1725610145112,0.36630631,55927.0,55926.0,0.014]
[1725610145333,1.19472431,55927.0,55926.0,0.028]
[1725610145751,0.83711531,55927.0,55926.0,0.12100875]
[1725610145955,1.19472431,55927.0,55926.0,0.028]
[1725610146636,1.19472431,55927.0,55926.0,0.014]
[1725610146846,0.178816,55924.0,55920.0,0.357652]
[1725610147054,0.178816,55924.0,55921.0,0.178821]
[1725610147055,0.04368731,55923.0,55921.0,0.178821]
[1725610147273,0.04368731,55922.0,55921.0,0.178821]
[1725610147494,0.04368731,55922.0,55921.0,0.26550031]
[1725610147728,0.04368731,55922.0,55921.0,0.08667931]
[1725610147943,0.22250731,55922.0,55921.0,0.08667931]
[1725610148784,0.04368731,55922.0,55921.0,0.08667931]
[1725610149271,0.58014731,55922.0,55921.0,0.08667931]
[1725610149417,0.53647,55921.0,55920.0,0.014]
[1725610149645,0.178841,55916.0,55913.0,0.178847]
[1725610149820,0.04368731,55915.0,55910.0,0.357713]
[1725610150023,0.04368731,55914.0,55912.0,0.17885]
[1725610150216,0.35768,55916.0,55912.0,0.536554]
[1725610150217,0.04368731,55913.0,55912.0,0.536554]
[1725610150435,0.476161,55919.0,55912.0,0.09167581]
[1725610150436,0.297331,55919.0,55912.0,0.09167581]
[1725610150648,0.01680695,55913.0,55912.0,0.536556]
[1725610150855,0.01680599,55913.0,55912.0,0.99593581]
[1725610151052,0.01680599,55913.0,55912.0,0.99793581]
[1725610151256,0.01680599,55913.0,55912.0,1.01193581]
[1725610151462,0.01680599,55913.0,55912.0,1.35563981]
[1725610151916,0.01680599,55913.0,55912.0,1.35363981]
[1725610152119,0.01680599,55913.0,55912.0,1.58833815]
[1725610152595,0.01680599,55913.0,55912.0,1.22063415]
[1725610152853,0.01680599,55913.0,55912.0,1.23463415]
[1725610153077,0.01680599,55913.0,55912.0,1.59233815]
[1725610153308,0.01680599,55913.0,55912.0,1.60633815]
[1725610153769,0.16259637,55913.0,55912.0,0.65623181]
[1725610154471,0.16259637,55913.0,55912.0,1.24863415]
[1725610154711,0.16259637,55913.0,55912.0,2.23154215]
[1725610154712,0.04369637,55913.0,55912.0,2.23154215]
[1725610154932,0.01680599,55913.0,55912.0,2.04934911]
[1725610155160,0.2568,55924.0,55923.0,0.894085]
[1725610155402,0.2568,55924.0,55923.0,0.62718665]
[1725610155630,0.02688637,55924.0,55923.0,0.62718665]
[1725610155868,0.01680398,55924.0,55923.0,0.99482065]
[1725610156091,0.01680398,55924.0,55923.0,1.35245465]
[1725610156296,0.01680398,55924.0,55923.0,1.52996561]
[1725610156503,0.000815,55927.0,55926.0,1.263652]
[1725610156824,0.000815,55927.0,55926.0,1.58908599]
[1725610157803,0.000815,55927.0,55926.0,1.60308599]
[1725610158270,0.000815,55927.0,55926.0,1.60108599]
[1725610159068,0.000815,55927.0,55926.0,1.61508599]
[1725610159819,0.000815,55927.0,55926.0,1.24747099]
[1725610160495,0.000815,55927.0,55926.0,0.88985599]
[1725610160971,0.000815,55927.0,55926.0,0.11873565]
[1725610161204,0.0176167,55927.0,55926.0,0.29754265]
[1725610162187,0.01761828,55927.0,55926.0,0.29754265]
[1725610162906,0.000815,55927.0,55926.0,0.29754265]
[1725610163180,0.19642215,55927.0,55926.0,0.028]
[1725610163419,1.18654056,55927.0,55926.0,0.028]
[1725610163654,0.85581747,55927.0,55926.0,0.028]
[1725610164292,0.82893156,55927.0,55926.0,0.028]
[1725610164533,0.49520898,55927.0,55926.0,0.028]
[1725610164762,0.31640486,55927.0,55926.0,0.028]
[1725610164986,0.49520886,55927.0,55926.0,0.028]
[1725610165477,0.31640486,55927.0,55926.0,0.028]
[1725610165714,0.31640486,55927.0,55926.0,0.206807]
[1725610165943,0.31640486,55927.0,55926.0,0.29547878]
[1725610165944,0.28951853,55927.0,55926.0,0.29547878]
[1725610166411,0.272715,55927.0,55926.0,0.65309378]
[1725610166634,0.01761903,55927.0,55926.0,1.01070878]
[1725610167118,0.01761903,55927.0,55926.0,1.37032378]
[1725610167337,0.000815,55927.0,55926.0,1.37032378]
[1725610168530,0.000815,55927.0,55926.0,1.36832378]
[1725610169675,0.000815,55927.0,55926.0,1.37032378]
[1725610169895,0.000815,55927.0,55926.0,1.38032378]
[1725610170120,0.000815,55927.0,55926.0,1.36832378]
[1725610170344,0.000815,55927.0,55926.0,1.37832378]
[1725610170582,0.000815,55927.0,55926.0,1.38032378]
[1725610170835,0.000815,55927.0,55926.0,2.17404974]
[1725610171516,0.000815,55927.0,55926.0,2.16004974]
[1725610171754,0.000815,55927.0,55926.0,2.26722965]
[1725610171995,0.000815,55927.0,55926.0,2.28122965]
[1725610172516,0.000815,55927.0,55926.0,2.17404974]
[1725610172751,0.000815,55927.0,55926.0,2.16004974]
[1725610173256,0.000815,55927.0,55926.0,2.17404974]
[1725610173502,0.000815,55927.0,55926.0,2.16004974]
[1725610173740,0.000815,55927.0,55926.0,2.51766474]
[1725610174205,0.000815,55927.0,55926.0,2.53166474]
[1725610174454,0.000815,55927.0,55926.0,2.61200165]
[1725610175425,0.000815,55927.0,55926.0,2.53166474]
[1725610175668,0.000815,55927.0,55926.0,2.17404974]
[1725610175908,0.000815,55927.0,55926.0,2.22758955]
[1725610176405,0.000815,55927.0,55926.0,2.17404974]
[1725610178462,0.000815,55927.0,55926.0,2.03344974]
[1725610179200,0.000815,55927.0,55926.0,2.39106474]
[1725610179437,0.000815,55938.0,55926.0,2.39106474]
[1725610179438,0.000815,55938.0,55937.0,1.618952]
[1725610179638,0.000815,55938.0,55937.0,2.12172823]
[1725610179858,0.000815,55938.0,55937.0,2.26302823]
[1725610180065,0.000815,55938.0,55937.0,2.38302823]
[1725610180952,0.000815,55938.0,55937.0,2.39702823]
[1725610181357,0.000815,55938.0,55937.0,2.41102823]
[1725610185608,0.000815,55938.0,55937.0,2.26972823]
[1725610185815,0.000815,55938.0,55937.0,1.91018323]
[1725610186237,0.000815,55938.0,55937.0,1.91218323]
[1725610186892,0.000815,55938.0,55937.0,1.89018323]
[1725610187101,0.000815,55938.0,55937.0,1.71467227]
[1725610188793,0.000815,55938.0,55937.0,1.73667227]
[1725610189255,0.000815,55938.0,55937.0,1.02158227]
[1725610189673,0.000815,55938.0,55937.0,1.37912727]
[1725610190754,0.000815,55938.0,55937.0,1.91218323]
[1725610190972,0.31849352,55955.0,55943.0,0.188752]
[1725610191193,0.178719,55954.0,55948.0,0.23469834]
[1725610191875,0.178721,55953.0,55948.0,0.23469834]
[1725610192335,0.357445,55953.0,55948.0,0.23469834]
[1725610192564,0.178725,55952.0,55944.0,0.23469834]
[1725610192812,0.178722,55953.0,55944.0,0.23469834]
[1725610193443,0.178722,55953.0,55948.0,0.012]
[1725610193879,0.178721,55953.0,55948.0,0.025]
[1725610194063,0.2664,55952.0,55944.0,0.23469834]
[1725610194266,0.445125,55952.0,55944.0,0.23469834]
[1725610194479,0.445125,55952.0,55944.0,0.24869834]
[1725610195116,0.445125,55952.0,55944.0,0.23469834]
[1725610195541,0.445124,55952.0,55944.0,0.23469834]
[1725610195755,0.2664,55952.0,55944.0,0.24669834]
[1725610195972,0.357459,55951.0,55944.0,0.012]
[1725610196195,0.178737,55948.0,55944.0,0.012]
[1725610196458,0.178741,55947.0,55940.0,0.23469834]
[1725610196670,0.357484,55947.0,55944.0,0.013]
[1725610196895,0.178746,55945.0,55944.0,0.013]
[1725610197118,0.178746,55945.0,55941.0,0.08836109]
[1725610197119,0.444446,55945.0,55941.0,0.08836109]
[1725610197546,0.444446,55945.0,55944.0,0.028]
[1725610197751,0.444446,55945.0,55944.0,0.014]
[1725610198172,0.2657,55945.0,55944.0,0.11636109]
[1725610198845,0.2657,55945.0,55944.0,0.10236109]
[1725610199474,0.444446,55945.0,55944.0,0.10236109]
[1725610200127,0.801939,55945.0,55944.0,0.028]
[1725610200402,1.17622985,55945.0,55944.0,0.028]
[1725610200622,0.801939,55945.0,55944.0,0.028]
[1725610200871,0.28249808,55945.0,55944.0,0.028]
[1725610201055,0.46124408,55945.0,55944.0,0.028]
[1725610201490,0.81873708,55945.0,55944.0,0.028]
[1725610202385,1.53372308,55945.0,55944.0,0.028]
[1725610202635,1.56060207,55945.0,55944.0,0.028]
[1725610203347,1.516925,55945.0,55944.0,0.028]
[1725610203586,1.56060534,55945.0,55944.0,0.014]
[1725610203785,1.56060534,55945.0,55944.0,0.024]
[1725610204024,1.516925,55945.0,55944.0,0.024]
[1725610204228,1.66060537,55945.0,55944.0,0.024]
[1725610204440,1.66060537,55945.0,55930.0,0.4723]
[1725610204441,0.40938037,55945.0,55931.0,0.23827373]
[1725610204649,0.29371207,55945.0,55944.0,0.013]
[1725610204860,0.0448111,55945.0,55944.0,0.027]
[1725610205097,0.01679903,55945.0,55944.0,0.027]
[1725610205321,0.01679903,55945.0,55944.0,0.013]
[1725610205532,0.000815,55948.0,55944.0,0.013]
[1725610205771,0.000815,55948.0,55947.0,0.23469834]
[1725610206191,0.000815,55948.0,55947.0,0.32417254]
[1725610206940,0.17031107,55948.0,55947.0,0.0894742]
[1725610207153,0.17031107,55948.0,55947.0,0.09022775]
[1725610207364,0.17031107,55948.0,55945.0,0.09022775]
[1725610207580,0.153515,55948.0,55947.0,0.014]
[1725610207826,0.17031172,55948.0,55947.0,0.028]
[1725610208261,0.17031172,55948.0,55947.0,0.014]
[1725610208530,0.01761172,55948.0,55947.0,0.014]
[1725610208749,0.000815,55948.0,55947.0,0.014]
[1725610208978,0.000815,55948.0,55947.0,0.33665834]
[1725610209212,0.000815,55948.0,55947.0,0.42744622]
[1725610210105,0.000815,55948.0,55947.0,0.19274788]
[1725610210363,0.000815,55948.0,55947.0,0.20674788]
[1725610212075,0.000815,55948.0,55947.0,0.44144622]
[1725610214097,0.000815,55948.0,55947.0,1.78175918]
[1725610214329,0.000815,55948.0,55947.0,2.14124018]
[1725610214551,0.000815,55948.0,55947.0,2.16124018]
[1725610214994,0.000815,55948.0,55947.0,2.54425009]
[1725610215219,0.000815,55948.0,55947.0,2.61372118]
[1725610215466,0.000815,55948.0,55947.0,2.70801454]
[1725610215674,0.000815,55948.0,55947.0,2.61372118]
[1725610215909,0.000815,55948.0,55947.0,2.69405233]
[1725610216347,0.000815,55948.0,55947.0,2.70805233]
[1725610216579,0.000815,55948.0,55947.0,2.70805945]
[1725610216781,0.000815,55948.0,55947.0,2.69405945]
[1725610217228,0.000815,55948.0,55947.0,0.28708615]
[1725610217443,0.121115,55948.0,55947.0,0.20674788]
[1725610217658,0.121115,55948.0,55947.0,0.19274788]
[1725610217911,0.299852,55948.0,55947.0,0.19274788]
[1725610218346,1.0148,55948.0,55947.0,0.17874788]
[1725610218611,1.516974,55948.0,55947.0,0.10196]
[1725610218822,1.6606498,55948.0,55947.0,0.10196]
[1725610219029,1.92335744,55948.0,55947.0,0.08796]
[1725610219536,1.92335744,55948.0,55947.0,0.10196]
[1725610219537,1.89534814,55948.0,55947.0,0.10196]
[1725610219994,2.41053501,55948.0,55947.0,0.10196]
[1725610220214,2.41053501,55948.0,55947.0,0.08796]
[1725610220427,2.41053501,55948.0,55947.0,0.10196]
[1725610220637,2.41053501,55948.0,55947.0,0.08796]
[1725610221058,2.11192782,55948.0,55947.0,0.10096]
[1725610221270,2.06825202,55948.0,55947.0,0.09096]
[1725610221489,2.23710054,55948.0,55947.0,0.08796]
[1725610221701,2.23710054,55948.0,55947.0,0.09396]
[1725610222118,2.23710054,55948.0,55947.0,0.08796]
[1725610222349,2.23710054,55948.0,55947.0,0.08959]
[1725610222557,1.92502757,55948.0,55947.0,0.08959]
[1725610222767,1.92584257,55948.0,55947.0,0.08959]
[1725610223009,1.56836857,55948.0,55947.0,0.09359]
[1725610223445,1.56836857,55948.0,55947.0,0.08959]
[1725610223671,1.56836805,55948.0,55947.0,0.08959]
[1725610224100,1.68836805,55948.0,55947.0,0.09959]
[1725610224332,1.68836805,55948.0,55947.0,0.09459]
[1725610224750,1.68836805,55948.0,55947.0,0.09759]
[1725610224997,1.68836805,55948.0,55947.0,0.08959]
[1725610225206,2.41148749,55948.0,55947.0,0.09959]
[1725610225453,2.48805912,55948.0,55947.0,0.09959]
[1725610225747,2.48802013,55948.0,55947.0,0.09959]
[1725610225985,2.40643618,55948.0,55947.0,0.09959]
[1725610226225,2.39076575,55948.0,55947.0,0.10659]
[1725610226441,2.07869281,55948.0,55947.0,0.10659]
[1725610226712,2.06884521,55948.0,55947.0,0.10659]
[1725610226960,2.04584521,55948.0,55947.0,0.10659]
[1725610227188,2.04584521,55948.0,55947.0,0.09659]
[1725610227868,2.04584521,55948.0,55947.0,0.10159]
[1725610228083,2.04584521,55948.0,55947.0,0.09659]
[1725610228551,2.04584521,55948.0,55947.0,0.10659]
[1725610229841,2.01896211,55948.0,55947.0,0.10659]
[1725610230053,2.00216017,55948.0,55947.0,0.10659]
[1725610231343,2.01896158,55948.0,55947.0,0.10659]
[1725610232046,2.04584385,55948.0,55947.0,0.10659]
[1725610232242,2.07272588,55948.0,55947.0,0.10659]
[1725610233177,0.99307788,55948.0,55947.0,0.10659]
[1725610233449,0.93818359,55948.0,55947.0,0.10659]
[1725610233665,0.93818359,55948.0,55947.0,0.11152136]
[1725610234095,0.93818359,55948.0,55947.0,0.10659]
[1725610234855,1.03818359,55948.0,55947.0,0.10659]
[1725610235511,1.03818105,55948.0,55947.0,0.10659]
[1725610236158,0.68070705,55948.0,55947.0,0.10659]
[1725610236626,0.14449605,55948.0,55947.0,0.10659]
[1725610236886,0.12769727,55948.0,55947.0,0.47185812]
[1725610237133,0.02769727,55948.0,55947.0,0.47185812]
[1725610237339,0.02769727,55948.0,55947.0,0.47678948]
[1725610237550,0.02769727,55948.0,55947.0,0.65552948]
[1725610237978,0.02769727,55948.0,55947.0,1.01301048]
[1725610238213,0.02769727,55948.0,55947.0,0.46678948]
[1725610238492,0.02769727,55948.0,55947.0,0.48078948]
[1725610238728,0.56390827,55948.0,55947.0,0.20708948]
[1725610238956,0.56390827,55948.0,55947.0,0.20008948]
[1725610239414,0.20643427,55948.0,55947.0,0.21308948]
[1725610240099,0.56390827,55948.0,55947.0,0.12152136]